[Event "Chinese League Division-A 2024"]
[Site "Fuling Chongqing"]
[Date "2024.07.03"]
[Round "7.24"]
[White "Xiao, Yiyi"]
[Black "Lu, Miaoyi"]
[Result "0-1"]
[ECO "D02"]
[WhiteElo "2338"]
[BlackElo "2449"]
[Annotator "TA"]
[PlyCount "56"]
[EventDate "2024.06.28"]
[EventType "team-tourn"]
[EventCountry "CHN"]
[SourceTitle "playchess.com"]
[Source "ChessBase"]
[SourceQuality "1"]
[TimeControl "40/5400+30:1800+30"]

{[%evp 11,56,6,6,-48,-24,-42,-46,-69,-48,-69,-64,-65,-62,-73,-79,-61,-85,-135,-135,-133,-138,-154,-127,-172,-191,-203,-94,-102,-100,-113,-116,-161,-123,-137,-127,-156,-163,-418,-199,-627,-620,-624,-629,-638,-637,-725,-717]} 1. d4 {[%emt 0:00:34]} d5 {[%emt 0:00:02]} 2. Bf4 {[%emt 0:00:43]} Nf6 {[%emt 0:00:08]} 3. e3 {[%emt 0:00:33]} e6 {[%emt 0:00:03]} 4. Nf3 {[%emt 0:01:44]} c5 {[%emt 0:00:03]} 5. Nbd2 {[%emt 0:00:16]} Nc6 {[%emt 0:00:02]} 6. c3 {[%emt 0:00:08]} Nh5 {[%emt 0:00:03]} 7. Bb5 {[%emt 0:17:48]} (7. Bg5 $11 Qb6 8. dxc5 Bxc5 9. b4) 7... Qb6 {[%emt 0:19:07]} 8. Qa4 {[%emt 0:01:56]} Bd7 {[%emt 0:06:45]} 9. O-O {[%emt 0:11:41] Black is slightly better.} cxd4 {[%emt 0:10:42]} 10. cxd4 {[%emt 0:08:32]} Nxf4 {[%emt 0:01:46]} 11. exf4 {[%emt 0:00:01][%cal Of4f5]} Bd6 {[%emt 0:00:07]} 12. f5 {[%emt 0:05:23]} exf5 {[%emt 0:01:48]} 13. Rfe1+ {[%emt 0:01:38]} Kf8 {[%emt 0:04:35]} 14. Bxc6 {[%emt 0:02:27]} ({White should play} 14. Nb3) 14... Bxc6 $17 {[%emt 0:02:21]} (14... Qxc6 15. Qb3 $15) 15. Qc2 {[%emt 0:00:08]} g6 {[%emt 0:06:57]} 16. Ne5 {[%emt 0:01:42]} Rc8 {[%emt 0:03:42][%cal Of8g7]} ({But not} 16... Qxd4 17. Ndf3 Qb6 18. Qc3 $17) 17. Qc3 {[%emt 0:18:25][%cal Od2c4]} Kg7 {[%emt 0:02:27]} 18. Nec4 {[%emt 0:05:04]} Qc7 {[%emt 0:12:40]} (18... dxc4 $19 {has better winning chances.} 19. d5+ f6) 19. Nxd6 {[%emt 0:00:14]} Qxd6 {[%emt 0:00:02]} 20. Rac1 {[%emt 0:03:56]} Bd7 {[%emt 0:05:58]} 21. Qd3 {[%emt 0:06:13]} f4 {[%emt 0:01:38]} 22. Qb3 {[%emt 0:03:22]} b6 {[%emt 0:00:34]} 23. Nb1 {[%emt 0:01:06]} Rhe8 {[%emt 0:11:52][%cal Od6e7] Strongly threatening ...Qe7!} 24. a3 $2 {[%emt 0:06:51] [#]} (24. Nc3) 24... Rc4 $40 {[%emt 0:03:47][%mdl 128] Black is out for blood. White is weak on the light squares} 25. Red1 {[%emt 0:01:17]} (25. Nd2 Rxe1+ (25... Rxd4 $2 26. Rxe8 Bxe8 27. Nf3 $17) 26. Rxe1 Rxd4 27. Nf3) 25... Ba4 $19 {[%emt 0:00:13] Black is clearly winning.} 26. Qf3 {[%emt 0:00:30]} Bxd1 {[%emt 0:00:03]} 27. Rxd1 {[%emt 0:00:04] [#]} Rxd4 $3 {[%emt 0:00:49][%mdl 512]} 28. Qc3 {[%emt 0:00:09] [#]} (28. Rf1 Qe5) 28... Qc5 $1 {[%emt 0:00:38] Weighted Error Value: White=0.59/Black=0.22 (precise) .  Mistake:       	White=3     	Black=2      Inaccurate:     	White=2     	---        OK:         	White=2     	Black=8      Best:        	---       	Black=2} 0-1

[Event "Chinese League Division-A 2024"]
[Site "Fuling Chongqing"]
[Date "2024.07.03"]
[Round "7.25"]
[White "Yan, Tianqi"]
[Black "Zhou, Shumeng"]
[Result "1/2-1/2"]
[ECO "C43"]
[WhiteElo "2306"]
[BlackElo "2173"]
[Annotator "RC"]
[PlyCount "97"]
[EventDate "2024.06.28"]
[EventType "team-tourn"]
[EventCountry "CHN"]
[SourceTitle "playchess.com"]
[Source "ChessBase"]
[SourceQuality "1"]
[TimeControl "40/5400+30:1800+30"]

1. e4 {[%emt 0:00:04]} e5 {[%emt 0:00:10]} 2. Nf3 {[%emt 0:00:18]} Nf6 {[%emt 0:00:09]} 3. d4 {[%emt 0:00:43]} Nxe4 {[%emt 0:00:08]} 4. Bd3 {[%emt 0:00:09]} d5 {[%emt 0:00:06]} 5. Nxe5 {[%emt 0:00:12]} Nd7 {[%emt 0:00:14]} 6. Nxd7 {[%emt 0:00:26]} Bxd7 {[%emt 0:00:06]} 7. Nd2 {[%emt 0:00:31]} Nxd2 {[%emt 0:05:06]} 8. Bxd2 {[%emt 0:00:09]} Bd6 {[%emt 0:05:36]} 9. O-O {[%emt 0:00:52]} O-O {[%emt 0:00:13]} 10. Qh5 {[%emt 0:01:09]} f5 {[%emt 0:00:12]} 11. Bg5 {[%emt 0:01:31]} Qe8 {[%emt 0:00:09]} 12. Qf3 {[%emt 0:00:18]} c6 {[%emt 0:08:34]} 13. Rfe1 {[%emt 0:06:26]} Qf7 {[%emt 0:04:29]} 14. Bf4 {[%emt 0:02:07]} Bxf4 {[%emt 0:01:01]} 15. Qxf4 {[%emt 0:00:10]} Rae8 {[%emt 0:03:03]} 16. c3 {[%emt 0:04:19]} a6 {[%emt 0:06:08]} 17. h3 {[%emt 0:04:25]} Re6 {[%emt 0:07:41]} 18. Re5 {[%emt 0:19:23]} Rxe5 {[%emt 0:00:18]} 19. dxe5 {[%emt 0:00:16]} Be6 {[%emt 0:00:09]} 20. a4 {[%emt 0:02:22]} Qe7 {[%emt 0:02:53]} 21. Re1 {[%emt 0:03:21]} Kh8 {[%emt 0:09:26]} 22. Qb4 {[%emt 0:19:51]} Qxb4 {[%emt 0:05:55]} 23. cxb4 {[%emt 0:00:07]} g5 {[%emt 0:09:27]} 24. Rc1 {[%emt 0:08:01]} Kg7 {[%emt 0:02:19]} 25. f4 {[%emt 0:06:05]} h6 {[%emt 0:04:47]} 26. Kf2 {[%emt 0:01:42]} Kf7 {[%emt 0:04:03]} 27. Ke3 {[%emt 0:05:28]} Ke7 {[%emt 0:01:37]} 28. b5 {[%emt 0:01:18]} axb5 {[%emt 0:00:17]} 29. axb5 {[%emt 0:00:08]} Bd7 {[%emt 0:03:50]} 30. Ra1 {[%emt 0:02:24]} c5 {[%emt 0:02:40]} 31. Ra7 {[%emt 0:01:16]} Rb8 {[%emt 0:01:54]} 32. b3 {[%emt 0:04:39]} Be6 {[%emt 0:00:46]} 33. Kf3 {[%emt 0:01:35]} Kd7 {[%emt 0:01:33]} 34. Ra1 {[%emt 0:00:41]} Kc7 {[%emt 0:00:56]} 35. fxg5 {[%emt 0:02:14]} hxg5 {[%emt 0:00:02]} 36. h4 {[%emt 0:00:06]} gxh4 {[%emt 0:01:32]} 37. Rh1 {[%emt 0:00:06]} c4 {[%emt 0:01:23]} 38. bxc4 {[%emt 0:00:42]} dxc4 {[%emt 0:00:02]} 39. Bxc4 {[%emt 0:00:28]} Bxc4 {[%emt 0:00:27]} 40. Rc1 {[%emt 0:00:00]} Kd7 {[%emt 0:00:00]} 41. Rxc4 {[%emt 0:00:09]} Ke6 {[%emt 0:03:03]} 42. Rxh4 {[%emt 0:01:45]} Kxe5 {[%emt 0:00:03]} 43. Rh7 {[%emt 0:01:11]} b6 {[%emt 0:01:12]} 44. Rc7 {[%emt 0:01:12]} Rd8 {[%emt 0:03:05]} 45. Re7+ {[%emt 0:02:41]} Kf6 {[%emt 0:00:12]} 46. Rh7 {[%emt 0:01:40]} Ke5 {[%emt 0:00:17]} 47. Re7+ {[%emt 0:04:22]} Kf6 {[%emt 0:00:05]} 48. Rh7 {[%emt 0:00:58]} Ke5 {[%emt 0:00:05]} 49. Re7+ {[%emt 0:00:04]} 1/2-1/2

[Event "Chinese League Division-A 2024"]
[Site "Fuling Chongqing"]
[Date "2024.07.03"]
[Round "7.26"]
[White "Chen, Qi b"]
[Black "Jiang, Haochen"]
[Result "1/2-1/2"]
[ECO "C47"]
[WhiteElo "2481"]
[BlackElo "2290"]
[Annotator "TA"]
[PlyCount "64"]
[EventDate "2024.06.28"]
[EventType "team-tourn"]
[EventCountry "CHN"]
[SourceTitle "playchess.com"]
[Source "ChessBase"]
[SourceQuality "1"]
[TimeControl "40/5400+30:1800+30"]

{[%evp 16,64,0,0,0,0,6,10,13,11,16,9,20,19,15,22,12,14,23,5,10,-9,-8,-8,-8,-16,-16,-16,-16,-16,-16,-16,-16,-16,-16,-16,-16,-16,-9,-9,-2,-2,0,0,0,-55,0,0,0,-55,0]} 1. e4 {[%emt 0:00:03]} e5 {[%emt 0:00:07]} 2. Nf3 {[%emt 0:00:07]} Nc6 {[%emt 0:00:06]} 3. Nc3 {[%emt 0:00:06]} Nf6 {[%emt 0:00:12]} 4. d4 {[%emt 0:00:06]} exd4 {[%emt 0:01:15]} 5. Nxd4 {[%emt 0:00:04]} Bb4 {[%emt 0:00:07]} 6. Nxc6 {[%emt 0:00:05]} bxc6 {[%emt 0:00:12]} 7. Bd3 {[%emt 0:00:03][%cal Bf1d3,Bd3e4,Be4c6][%mdl 32]} d5 {[%emt 0:01:23]} 8. Bd2 {[%emt 0:00:10]} O-O {[%emt 0:09:40]} 9. O-O {[%emt 0:00:08]} Bxc3 {[%emt 0:04:11]} 10. Bxc3 {[%emt 0:00:04]} dxe4 {[%emt 0:04:53]} 11. Bxf6 {[%emt 0:00:05]} (11. Bc4 {is interesting.} Qd6 12. Re1 Re8 13. Bb3) 11... Qxf6 {[%emt 0:00:19] The position is equal.} 12. Bxe4 {[%emt 0:00:03]} Qxb2 {[%emt 0:08:49]} 13. Bxc6 {[%emt 0:00:10]} Ba6 {[%emt 0:02:03]} 14. Rb1 {[%emt 0:08:00]} Qf6 {[%emt 0:13:12]} 15. Bxa8 {[%emt 0:01:43]} Bxf1 {[%emt 0:00:20]} 16. Bd5 {[%emt 0:15:31] Dodges Bc4} Ba6 {[%emt 0:05:49]} 17. Qf3 {[%emt 0:00:24]} Qxf3 {[%emt 0:03:28]} 18. gxf3 $11 {[%emt 0:02:07][%mdl 4096] Endgame. KRB-KRB} Rd8 {[%emt 0:00:51]} 19. Kg2 {[%emt 0:09:08]} g6 {[%emt 0:04:44]} 20. c4 {[%emt 0:01:12] [#]} c6 $1 {[%emt 0:00:50]} 21. Bxc6 {[%emt 0:00:04]} Bxc4 {[%emt 0:00:06]} 22. Rb4 {[%emt 0:02:02]} Bxa2 {[%emt 0:02:39] White should prevent ...Rd6.} 23. Ra4 {[%emt 0:00:03][%csl LRa2,LRa7]} Be6 {[%emt 0:03:14]} 24. Rxa7 {[%emt 0:00:05]} Rd6 {[%emt 0:00:08]} 25. Be4 {[%emt 0:00:32]} Kg7 {[%emt 0:00:30]} 26. Ra5 {[%emt 0:00:27]} Rb6 {[%emt 0:00:37]} 27. Bd5 {[%emt 0:00:34]} h5 {[%emt 0:00:52]} 28. Bxe6 {[%emt 0:00:06]} Rxe6 {[%emt 0:00:03]} 29. h3 {[%emt 0:00:06]} Rd6 {[%emt 0:00:09]} 30. Rb5 {[%emt 0:00:04]} ({Better is} 30. h4 $11) 30... Re6 {[%emt 0:00:05]} ({Black should try} 30... Rd4 $1 $15) 31. Ra5 {[%emt 0:00:03]} Rd6 {[%emt 0:00:04]} (31... Re7 $11) 32. Rb5 $15 {[%emt 0:00:02]} Re6 {[%emt 0:00:05] An even fight not without its subleties.   Weighted Error Value: White=0.06 (flawless) /Black=0.04 (flawless) .  Mistake:       	White=1     	Black=3      OK:         	White=12    	Black=10     Best:        	White=2     	Black=1} (32... Rd4 $1 $15) 1/2-1/2

[Event "Chinese League Division-A 2024"]
[Site "Fuling Chongqing"]
[Date "2024.07.03"]
[Round "7.27"]
[White "Wang, Zihang"]
[Black "Xu, Jun"]
[Result "1/2-1/2"]
[ECO "B51"]
[WhiteElo "2028"]
[BlackElo "2471"]
[Annotator "TA"]
[PlyCount "82"]
[EventDate "2024.06.28"]
[EventType "team-tourn"]
[EventCountry "CHN"]
[SourceTitle "playchess.com"]
[Source "ChessBase"]
[SourceQuality "1"]
[TimeControl "40/5400+30:1800+30"]

{[%evp 13,82,21,19,30,25,16,31,25,32,28,33,12,7,0,23,12,31,27,29,29,58,29,23,17,113,114,105,95,104,108,110,106,108,61,127,127,189,191,175,142,117,36,95,96,90,91,98,92,83,3,3,2,2,3,4,0,0,0,0,0,8,0,0,0,0,0,0,0,0,0,0]} 1. e4 {[%emt 0:00:03]} c5 {[%emt 0:00:05]} 2. Nf3 {[%emt 0:00:06]} d6 {[%emt 0:00:05]} 3. Bb5+ {[%emt 0:00:10]} Nd7 {[%emt 0:00:11]} 4. d4 {[%emt 0:00:08]} Ngf6 {[%emt 0:00:03]} 5. Nc3 {[%emt 0:01:01]} cxd4 {[%emt 0:01:35]} 6. Qxd4 {[%emt 0:00:36]} e5 {[%emt 0:00:04]} 7. Qd3 {[%emt 0:00:30]} h6 {[%emt 0:00:01]} 8. a4 {[%emt 0:01:43]} a6 {[%emt 0:00:43]} 9. Bc4 {[%emt 0:01:26]} Nc5 {[%emt 0:00:45]} 10. Qe2 {[%emt 0:00:18] White is slightly better.} Be7 {[%emt 0:00:52]} 11. O-O {[%emt 0:05:40]} Qc7 {[%emt 0:00:29]} 12. b3 {[%emt 0:15:35]} O-O {[%emt 0:08:59]} 13. Rd1 {[%emt 0:04:30]} Be6 {[%emt 0:02:54]} 14. Nd2 {[%emt 0:14:34]} Rac8 {[%emt 0:02:39]} 15. Bb2 {[%emt 0:05:48]} Rfd8 {[%emt 0:02:28]} 16. a5 {[%emt 0:04:35]} Bf8 {[%emt 0:04:24]} 17. Nd5 {[%emt 0:07:54]} Nxd5 {[%emt 0:07:40]} 18. Bxd5 {[%emt 0:00:40]} f5 {[%emt 0:03:58]} 19. Bxe6+ $16 {[%emt 0:14:20]} Nxe6 {[%emt 0:00:03][%cal Bc5e6,Be6f4,Bf4e2][%mdl 32]} 20. exf5 {[%emt 0:04:34]} Nf4 {[%emt 0:01:05]} 21. Qc4+ {[%emt 0:01:10]} Qxc4 {[%emt 0:01:59]} 22. Nxc4 {[%emt 0:00:15]} d5 {[%emt 0:00:21]} 23. Ne3 {[%emt 0:03:58]} (23. Nxe5 $6 Rxc2 24. Bc1 Ne2+ 25. Kf1 Bb4 $11) (23. Bxe5 $16 {Threatens to win with Nb6.} dxc4 24. Bxf4) 23... Bc5 {[%emt 0:01:43]} (23... d4 $14 24. Nc4 Bb4) 24. Bxe5 {[%emt 0:08:16]} Bxe3 {[%emt 0:06:50]} (24... Ne2+ $16 25. Kf1 Bxe3) 25. fxe3 $18 {[%emt 0:00:03]} Ne2+ {[%emt 0:00:29]} 26. Kf1 {[%emt 0:02:58]} Rxc2 {[%emt 0:00:42]} 27. g4 {[%emt 0:01:07]} (27. b4 $16) 27... h5 {[%emt 0:03:20]} 28. Re1 {[%emt 0:01:59]} ({Much worse is} 28. gxh5 Rf8 29. f6 (29. Rxd5 Rxf5+ 30. Ke1 Ng1 $15) 29... gxf6 $14) (28. g5 {looks sharper.} Rf8 29. f6 gxf6 30. gxf6 Kf7 31. Rxd5 Ke6 32. e4) 28... Re8 {[%emt 0:01:28]} 29. Rxe2 {[%emt 0:00:31]} Rxe2 {[%emt 0:00:30]} 30. Kxe2 {[%emt 0:00:02]} Rxe5 $16 {[%emt 0:00:02][%mdl 4096] Endgame. KR-KR} 31. Rd1 {[%emt 0:00:57]} (31. Ra4 $16 {Strongly threatening h3.} hxg4 32. Rxg4 Rxf5 33. Rd4) 31... hxg4 $11 {[%emt 0:00:15] The position is equal.} 32. Rd4 {[%emt 0:00:17]} Rxf5 {[%emt 0:00:13]} 33. Rxg4 {[%emt 0:00:10]} d4 {[%emt 0:00:24]} 34. exd4 {[%emt 0:00:53]} Rxa5 {[%emt 0:01:24]} 35. Kd3 {[%emt 0:00:10]} Rh5 {[%emt 0:00:15]} 36. h4 {[%emt 0:00:10]} a5 {[%emt 0:00:07]} 37. Rf4 {[%emt 0:01:18]} b5 {[%emt 0:01:06]} 38. Kc3 {[%emt 0:00:30]} Kh7 {[%emt 0:01:47]} 39. Rg4 {[%emt 0:00:31]} Kg8 {[%emt 0:00:14]} 40. Rf4 {[%emt 0:00:00]} Kh7 {[%emt 0:00:00]} 41. Rg4 {[%emt 0:14:06]} Kg8 {[%emt 0:01:41] Black defended with fortune.   Weighted Error Value: White=0.15 (very precise) /Black=0.15 (very precise) .  Mistake:       	White=3     	Black=4      Inaccurate:     	White=1     	Black=1      OK:         	White=12    	Black=17     Best:        	White=4     	Black=3} 1/2-1/2

[Event "Chinese League Division-A 2024"]
[Site "Fuling Chongqing"]
[Date "2024.07.03"]
[Round "7.28"]
[White "Wei, Yi"]
[Black "Xu, Pengmo"]
[Result "1-0"]
[ECO "B13"]
[WhiteElo "2755"]
[BlackElo "1834"]
[Annotator "TA"]
[PlyCount "71"]
[EventDate "2024.06.28"]
[EventType "team-tourn"]
[EventCountry "CHN"]
[SourceTitle "playchess.com"]
[Source "ChessBase"]
[SourceQuality "1"]
[TimeControl "40/5400+30:1800+30"]

{[%evp 21,71,31,34,3,39,36,26,13,42,39,53,54,48,48,50,37,53,50,74,43,58,50,78,70,72,58,61,58,70,72,83,79,208,114,89,114,204,193,209,214,196,191,352,354,347,347,440,440,29990,29991,29991,29992]} 1. e4 {[%emt 0:00:05]} c6 {[%emt 0:00:10]} 2. d4 {[%emt 0:03:04]} d5 {[%emt 0:00:22]} 3. exd5 {[%emt 0:00:14]} cxd5 {[%emt 0:00:26]} 4. Bd3 {[%emt 0:00:08]} Nc6 {[%emt 0:01:49]} 5. c3 {[%emt 0:00:05]} Nf6 {[%emt 0:03:36]} 6. Bf4 {[%emt 0:00:09]} Bg4 {[%emt 0:01:17]} 7. Qb3 {[%emt 0:00:11]} Qc8 {[%emt 0:01:49]} 8. Nd2 {[%emt 0:00:46]} e6 {[%emt 0:04:06]} 9. Ngf3 {[%emt 0:00:07]} Be7 {[%emt 0:01:25]} 10. O-O {[%emt 0:00:38]} Bh5 {[%emt 0:03:52]} 11. Rfe1 {[%emt 0:01:48]} O-O {[%emt 0:01:45]} 12. h4 {[%emt 0:02:09]} Bg6 {[%emt 0:04:24]} 13. Bxg6 {[%emt 0:00:15]} hxg6 {[%emt 0:00:14]} 14. a4 {[%emt 0:02:07] White has an edge.} Qd7 {[%emt 0:08:39]} 15. Ng5 {[%emt 0:05:06]} Bd6 {[%emt 0:06:21]} 16. Bxd6 {[%emt 0:00:08]} Qxd6 {[%emt 0:00:07]} 17. Ndf3 {[%emt 0:00:07]} (17. Qxb7 Rab8 18. Qa6 Rxb2 $11) 17... Rae8 {[%emt 0:17:37]} 18. Re2 {[%emt 0:03:43]} b6 {[%emt 0:03:18]} 19. Ne5 {[%emt 0:05:54]} Ne7 {[%emt 0:05:51]} 20. Rae1 {[%emt 0:03:38] White is much more active.} Nf5 {[%emt 0:01:26]} 21. g3 {[%emt 0:00:08]} Nh7 {[%emt 0:01:42]} 22. Ngf3 {[%emt 0:02:17]} Qd8 {[%emt 0:01:43]} 23. Kg2 {[%emt 0:02:48]} Nf6 {[%emt 0:02:53]} 24. Ng5 {[%emt 0:00:28]} Qc7 {[%emt 0:03:06]} 25. Qb5 {[%emt 0:06:36]} Rc8 {[%emt 0:03:42]} 26. Qd3 {[%emt 0:01:43]} Nd6 {[%emt 0:04:15] [#]} (26... Qd8 $16) 27. Rh1 {[%emt 0:20:43]} (27. Nxg6 $1 $18 Rfe8 (27... fxg6 $2 28. Nxe6 Qd7 29. Nxf8 $18) 28. Ne5) 27... Rfe8 $16 {[%emt 0:03:06]} 28. g4 {[%emt 0:02:44][%cal Bg3g4,Bg4h5][%mdl 32]} Qb7 {[%emt 0:06:00]} (28... Nfe4 $16 {was worth a try.}) 29. f3 $18 {[%emt 0:02:57]} Rc7 {[%emt 0:01:54] [#]} 30. h5 $1 {[%emt 0:03:28]} gxh5 {[%emt 0:00:21]} 31. Rxh5 {[%emt 0:00:09] Threatens to win with Rh1.} Nxh5 {[%emt 0:00:52]} (31... Nde4 {keeps fighting.}) 32. Qh7+ {[%emt 0:00:10]} Kf8 {[%emt 0:00:09]} 33. gxh5 {[%emt 0:02:02] h6 would now be deadly.} (33. Qxh5 b5 $18) 33... Qa6 {[%emt 0:01:57]} 34. Kf2 {[%emt 0:08:30]} ({Less strong is} 34. Ng6+ fxg6 35. Qh8+ Ke7 36. Rxe6+ Kd7 37. Rxd6+ (37. Qxg7+ $2 {loses.} Kc6 $19) 37... Kxd6 $18) 34... Rec8 {[%emt 0:01:15] [#]} (34... Qxa4 $18 35. Qh8+ Ke7 36. Qxg7 Kd8) 35. Ng6+ $1 {[%emt 0:01:27][%mdl 512] A dynamic duo of knights.} Ke8 {[%emt 0:00:42] [#]} 36. Rxe6+ $1 {[%emt 0:00:05][%mdl 512] Weighted Error Value: White=0.08 (flawless) /Black=0.55.  Mistake:       	White=1     	Black=4      Inaccurate:     	White=1     	Black=3      OK:         	White=11    	Black=5      Best:        	White=1     	---        Strong:       	White=1     	---        Brilliant:      	White=1     	---} 1-0

[Event "Chinese League Division-A 2024"]
[Site "Fuling Chongqing"]
[Date "2024.07.03"]
[Round "7.29"]
[White "Zhao, Yunqing"]
[Black "Shen, Yang"]
[Result "0-1"]
[ECO "D23"]
[WhiteElo "1986"]
[BlackElo "2394"]
[Annotator "TA"]
[PlyCount "114"]
[EventDate "2024.06.28"]
[EventType "team-tourn"]
[EventCountry "CHN"]
[SourceTitle "playchess.com"]
[Source "ChessBase"]
[SourceQuality "1"]
[TimeControl "40/5400+30:1800+30"]

{[%evp 10,114,12,15,9,16,0,2,4,0,0,0,8,0,0,-5,9,23,10,-8,0,-31,-18,-31,-29,-21,-22,-19,-20,-20,-1,-33,-43,-46,-18,-45,-30,-33,-10,-11,0,-29,-23,-31,-27,-29,0,0,-1,-45,-41,-44,-44,-60,-71,-112,-119,-99,-102,-146,-145,-135,-84,-90,-85,-137,-129,-132,-148,-157,-175,-203,-149,-202,-225,-270,-251,-260,-254,-262,-261,-397,-387,-526,-575,-709,-641,-738,-657,-722,-679,-629,-620,-530,-472,-896,-675,-1028,-1118,-1201,-989,-1235,-1116,-1364,-1245,-6087,-1104]} 1. d4 {[%emt 0:00:03]} d5 {[%emt 0:00:10]} 2. c4 {[%emt 0:00:05]} c6 {[%emt 0:00:17]} 3. Nf3 {[%emt 0:00:05]} Nf6 {[%emt 0:00:23]} 4. Qc2 {[%emt 0:00:06]} dxc4 {[%emt 0:02:52]} 5. Qxc4 {[%emt 0:00:07]} Bg4 {[%emt 0:00:25]} 6. Nbd2 {[%emt 0:00:20][%cal Bb1d2,Bd2f3,Bf3e5][%mdl 32]} e6 {[%emt 0:03:13]} 7. g3 {[%emt 0:00:52]} Nbd7 {[%emt 0:06:16]} 8. Bg2 {[%emt 0:00:37]} Be7 {[%emt 0:00:55] The position is equal.} 9. O-O {[%emt 0:00:27]} O-O {[%emt 0:00:08]} 10. Ne5 {[%emt 0:04:00]} Bh5 {[%emt 0:01:06]} 11. Ndf3 {[%emt 0:07:31]} Rc8 {[%emt 0:05:31]} 12. b4 {[%emt 0:14:54]} Nb6 {[%emt 0:01:46]} 13. Qb3 {[%emt 0:00:56]} Qd5 {[%emt 0:01:18]} (13... Bxf3 {simplifies} 14. Nxf3 Qd5 15. Rb1 Qxb3 16. Rxb3 Ne4) 14. Rb1 {[%emt 0:09:26]} Ng4 {[%emt 0:10:42]} 15. e3 {[%emt 0:10:27]} Nxe5 {[%emt 0:04:40]} 16. Nxe5 {[%emt 0:00:30]} Qxb3 {[%emt 0:00:30]} 17. Rxb3 {[%emt 0:00:30]} f6 {[%emt 0:00:30]} 18. Bf3 {[%emt 0:14:43]} Bxf3 {[%emt 0:02:28]} (18... Be8 $5 19. Nd3 $8 Bf7 $11) 19. Nxf3 {[%emt 0:00:06]} Rfd8 {[%emt 0:00:33]} 20. e4 {[%emt 0:09:53]} Nc4 {[%emt 0:02:47]} 21. Be3 {[%emt 0:04:37]} a6 {[%emt 0:05:17]} 22. Rd1 {[%emt 0:05:08]} Kf7 {[%emt 0:02:13]} 23. Nd2 {[%emt 0:01:27]} Nd6 {[%emt 0:00:51]} 24. Kf1 {[%emt 0:06:10]} e5 {[%emt 0:01:27]} 25. Ke2 {[%emt 0:03:49]} exd4 {[%emt 0:02:55]} 26. Bxd4 {[%emt 0:00:07]} Nb5 {[%emt 0:02:06]} 27. Nf3 {[%emt 0:01:06]} c5 {[%emt 0:01:34]} (27... Bxb4 $5 28. Rxb4 c5 29. Rxb5 axb5 $11) 28. bxc5 {[%emt 0:01:56]} Bxc5 {[%emt 0:00:27]} 29. Bxc5 {[%emt 0:00:23] [#] Rxd8 is the strong threat.} Rxd1 {[%emt 0:00:07]} 30. Kxd1 {[%emt 0:00:03]} Rxc5 $11 {[%emt 0:00:16][%mdl 4096] Endgame. KRN-KRN} 31. Kd2 {[%emt 0:00:52] Repels Nc3} Rc4 {[%emt 0:02:01]} 32. e5 {[%emt 0:03:42]} Ra4 {[%emt 0:01:05]} 33. Rb2 {[%emt 0:00:07] [#]} Ra3 $1 {[%emt 0:00:45]} 34. Ne1 {[%emt 0:00:31]} fxe5 {[%emt 0:01:18] Black is more active.} 35. Nd3 {[%emt 0:00:18]} e4 {[%emt 0:02:21]} (35... Kf6 $142 36. Nc5 Kf5 37. Nxb7 Kg4) 36. Nc5 $17 {[%emt 0:01:15][%csl LRb7,LRe4]} Nd6 {[%emt 0:00:38]} 37. Ke2 {[%emt 0:00:59]} ({White should try} 37. Ke1) 37... b5 {[%emt 0:00:40]} 38. Rd2 {[%emt 0:00:44]} Ke7 {[%emt 0:00:30]} 39. Rc2 {[%emt 0:00:33]} a5 {[%emt 0:01:06]} 40. Nb3 {[%emt 0:00:00]} Nf5 {[%emt 0:00:00]} 41. Ke1 {[%emt 0:04:19]} (41. Rd2 $17) 41... a4 $19 {[%emt 0:07:00]} 42. Nd2 {[%emt 0:05:49]} Nd4 {[%emt 0:04:02]} 43. Rb2 {[%emt 0:00:29]} e3 {[%emt 0:01:43]} 44. Nb1 {[%emt 0:07:06]} exf2+ {[%emt 0:01:13]} 45. Kxf2 {[%emt 0:00:06]} (45. Rxf2 $142 Rd3 46. Rf4) 45... Rd3 {[%emt 0:00:26]} 46. Rd2 {[%emt 0:06:11]} Rxd2+ {[%emt 0:01:11] Black is clearly winning.} 47. Nxd2 {[%emt 0:00:05] KN-KN} Ke6 {[%emt 0:05:23]} 48. Ke1 {[%emt 0:02:48]} Kf5 {[%emt 0:03:03] Wards off Ne4} 49. h3 {[%emt 0:01:49]} Ke5 {[%emt 0:00:48]} 50. Kd1 {[%emt 0:03:15]} h5 {[%emt 0:01:23]} 51. Ke1 {[%emt 0:01:49]} Nc2+ {[%emt 0:01:50]} 52. Ke2 {[%emt 0:01:12]} (52. Kd1 $142 Nd4 53. Ke1) 52... Kd4 {[%emt 0:00:48] Hoping for ...Nb4.} 53. Nb1 {[%emt 0:01:16]} Nb4 {[%emt 0:00:29]} 54. a3 {[%emt 0:00:12]} Nd5 {[%emt 0:00:35]} 55. Kd2 {[%emt 0:00:38] Prevents Nc3} Ne3 {[%emt 0:00:14]} 56. Ke2 {[%emt 0:00:45]} Nc4 {[%emt 0:00:12][%cal Oc4a3] Strongly threatening ...Nxa3!} 57. g4 {[%emt 0:00:10]} h4 {[%emt 0:01:43] Weighted Error Value: White=0.48/Black=0.09 (flawless) .  Mistake:       	White=3     	Black=1      Inaccurate:     	White=9     	Black=2      OK:         	White=13    	Black=19     Best:        	White=1     	Black=6      Strong:       	---       	Black=1} (57... hxg4 $142 58. hxg4 Nxa3 59. Nxa3 b4 60. Nb5+ Kc5) 0-1